bitfinex-derivatives/quotes_SOLF0:USTF0_20250523
["timestamp","ask_amount","ask_price","bid_price","bid_amount"]
[1747980022261,113.77719713,181.95,181.94,5.4963]
[1747980022462,113.77719713,181.95,181.91,0.0375124]
[1747980022967,113.77719713,181.95,181.93,5.4964]
[1747980023166,113.77719713,181.95,181.91,0.0375124]
[1747980023772,119.27319713,181.95,181.92,5.4967]
[1747980025063,113.77719713,181.95,181.94,5.4963]
[1747980027671,113.77719713,181.95,181.91,0.0375124]
[1747980028370,119.27329713,181.95,181.92,5.4968]
[1747980028972,113.77719713,181.95,181.93,5.4965]
[1747980029769,119.27329713,181.95,181.93,5.4965]
[1747980032275,5.4963,181.94,181.91,0.0375124]
[1747980032775,113.77719713,181.95,181.91,0.0375124]
[1747980032976,5.4968,181.93,181.91,0.0375124]
[1747980033476,5.4968,181.93,181.91,5.5346124]
[1747980033770,5.4968,181.93,181.91,0.0375124]
[1747980033978,5.4969,181.92,181.91,0.0375124]
[1747980036685,113.77719713,181.95,181.91,0.0375124]
[1747980037280,5.4964,181.94,181.91,5.5347124]
[1747980037975,119.27329713,181.95,181.92,5.4969]
[1747980038883,113.77719713,181.95,181.93,5.4964]
[1747980039287,113.77719713,181.95,181.91,0.0375124]
[1747980039583,113.77719713,181.95,181.94,5.4963]
[1747980040275,0.03719713,181.95,181.94,5.4963]
[1747980042985,113.7,181.99,181.98,5.4951]
[1747980043683,113.7,181.99,181.97,5.4954]
[1747980043887,113.7,181.99,181.94,5.50417735]
[1747980044086,0.03969112,181.98,181.95,0.03698536]
[1747980044479,0.03969112,181.98,181.97,5.4954]
[1747980046090,118.71777055,182.03,182.01,5.4941]
[1747980046286,118.71777055,182.03,181.95,1.8533]
[1747980046484,119.1737,182.03,181.97,5.50417735]
[1747980046684,113.68,182.03,182.0,5.4944]
[1747980046880,113.68,182.03,181.97,5.50417735]
[1747980047084,113.68,182.03,181.98,0.03788768]
[1747980048295,113.68,182.03,182.01,5.494]
[1747980049696,119.1737,182.03,181.98,0.03788768]
[1747980049999,113.68,182.03,181.98,0.03788768]
[1747980050184,5.4939,182.02,181.99,5.4947]
[1747980050598,113.68,182.03,181.98,0.03788768]
[1747980051096,119.1739,182.03,181.99,5.4947]
[1747980051388,119.1739,182.03,181.98,0.03788768]
[1747980052098,119.1739,182.03,182.0,5.4943]
[1747980054302,5.4939,182.02,181.99,5.4947]
[1747980055201,113.68,182.03,181.98,0.03788768]
[1747980056301,5.4947,182.0,181.98,0.03788768]
[1747980057005,5.4943,182.01,181.98,5.53288768]
[1747980058810,5.4943,182.01,181.99,5.4948]
[1747980059514,119.1737,182.03,182.0,5.4945]
[1747980060010,113.68,182.03,182.0,5.4945]
[1747980060309,113.68,182.03,181.99,5.4948]
[1747980060511,113.68,182.03,181.98,0.03788768]
[1747980061214,119.1737,182.03,182.0,5.4944]
[1747980061511,483.76367055,182.08,181.98,0.03788768]
[1747980061512,113.56,182.05,181.98,0.03788768]
[1747980062108,119.0532,182.05,182.02,5.4938]
[1747980062414,113.56,182.05,182.02,0.04179138]
[1747980062613,5.4935,182.04,182.02,0.04179138]
[1747980063411,113.56,182.05,182.02,0.04179138]
[1747980064813,5.4936,182.03,182.02,0.04179138]
[1747980076730,118.59777055,182.05,182.02,0.04179138]
[1747980077526,5.4936,182.03,182.02,0.04179138]
[1747980080525,119.0536,182.03,182.02,0.04179138]
[1747980081926,113.56,182.03,182.02,0.04179138]
[1747980083431,119.0536,182.03,182.02,0.04179138]
[1747980084132,113.56,182.03,182.02,0.04179138]
[1747980084430,113.56,182.03,182.02,5.53569138]
[1747980085035,113.56,182.03,182.02,0.04179138]
[1747980087134,113.56,182.03,182.02,5.53569138]
[1747980087636,113.56,182.03,182.02,0.04179138]
[1747980088628,119.0536,182.03,182.02,0.04179138]
[1747980093651,113.56,182.03,182.02,0.04179138]
[1747980094551,113.56,182.03,182.02,5.53569138]
[1747980096945,5.4928,182.06,182.03,5.4933]
[1747980097143,5.493,182.05,182.02,0.04179138]
[1747980097347,118.47777055,182.07,182.03,5.4934]
[1747980097743,5.4929,182.06,182.03,5.4934]
[1747980097948,118.47777055,182.07,182.03,5.4934]
[1747980098359,5.4929,182.06,182.03,5.4934]
[1747980098659,118.47777055,182.07,182.03,5.4934]
[1747980099167,5.493,182.06,182.03,5.4934]
[1747980099458,113.44,182.07,182.02,0.04179138]
[1747980099859,5.4936,182.03,182.02,0.04179138]
[1747980100660,118.9336,182.03,182.02,9.138e-05]
[1747980101858,123.97137055,182.03,182.02,9.138e-05]
[1747980105265,5.4961,181.95,181.93,113.44]
[1747980105451,113.44,181.99,181.91,4.23582133]
[1747980106449,0.0352439,181.97,181.93,0.03970603]
[1747980106763,5.4957,181.96,181.93,0.03970603]
[1747980107366,0.0352439,181.97,181.93,0.03970603]
[1747980107662,5.4963,181.94,181.93,0.03970603]
[1747980109666,118.9561,181.95,181.93,0.03970603]
[1747980109868,5.4961,181.95,181.93,0.03970603]
[1747980110370,113.5152439,181.97,181.93,0.03970603]
[1747980110371,5.4957,181.96,181.93,0.03970603]
[1747980110668,113.5152439,181.97,181.93,0.03970603]
[1747980111271,5.4959,181.96,181.93,5.53620603]
[1747980112074,5.496,181.95,181.93,5.53620603]
[1747980112274,5.496,181.95,181.93,0.03970603]
[1747980112464,113.5152439,181.97,181.93,0.03970603]
[1747980112777,5.4959,181.96,181.93,5.53620603]
[1747980114472,5.496,181.95,181.93,0.03970603]
[1747980114772,113.5152439,181.97,181.93,0.03970603]
[1747980115167,5.4963,181.94,181.93,0.03970603]
[1747980118570,5.4961,181.95,181.93,0.03970603]
[1747980119575,5.4958,181.96,181.93,5.53620603]
[1747980119879,113.5152439,181.97,181.93,0.03970603]
[1747980120577,5.4963,181.94,181.93,0.03970603]
[1747980120975,113.5152439,181.97,181.93,0.03970603]
[1747980121175,5.4961,181.95,181.93,0.03970603]
[1747980122279,5.4958,181.96,181.93,0.03970603]
[1747980122580,113.5152439,181.97,181.93,0.03970603]
[1747980124583,5.4963,181.94,181.93,0.03970603]
[1747980125484,5.4963,181.94,181.93,6.03e-06]
[1747980125873,5.4987,181.86,181.84,4.23582133]
[1747980126078,113.38,181.89,181.84,4.23582133]
[1747980126584,113.38,181.89,181.85,5.499]
[1747980126885,113.41617863,181.89,181.85,0.04055352]
[1747980127677,113.41617863,181.89,181.88,5.4981]
[1747980128679,0.03617863,181.89,181.88,5.4981]
[1747980129589,0.03617863,181.89,181.87,5.4983]
[1747980129776,0.03617863,181.89,181.86,4.0141]
[1747980130275,0.03617863,181.89,181.88,5.4981]
[1747980133088,0.03617863,181.89,181.86,4.0141]
[1747980133472,0.03617863,181.89,181.88,5.4981]
[1747980133787,113.4,181.93,181.86,4.0141]
[1747980134083,113.4,181.93,181.88,5.4981]
[1747980134284,5.4974,181.91,181.88,5.4981]
[1747980134686,5.53598579,181.91,181.88,5.53885962]
[1747980136182,5.4976,181.9,181.88,0.04075962]
[1747980137487,5.4978,181.89,181.88,0.04075962]
[1747980137986,5.4976,181.9,181.88,0.04075962]
[1747980138188,0.03858579,181.91,181.88,0.04075962]
[1747980138484,0.03858579,181.91,181.88,5.53865962]
[1747980138681,5.53608579,181.91,181.88,5.53865962]
[1747980139891,0.03858579,181.91,181.88,0.04075962]
[1747980140390,5.4978,181.89,181.88,0.04075962]
[1747980140692,0.03858579,181.91,181.88,0.04075962]
[1747980141090,5.53598579,181.91,181.88,5.53865962]
[1747980142695,0.03858579,181.91,181.89,5.4978]
[1747980143090,0.03858579,181.91,181.88,0.04075962]
[1747980143285,5.53608579,181.91,181.88,5.53875962]
[1747980143785,5.53608579,181.91,181.88,0.04075962]
[1747980144187,5.4976,181.9,181.88,0.04075962]
[1747980144488,0.03858579,181.91,181.88,0.04075962]
[1747980145392,5.4977,181.9,181.88,0.04075962]
[1747980146693,5.4978,181.89,181.88,0.04075962]
[1747980147190,5.4976,181.9,181.88,0.04075962]
[1747980147391,0.03858579,181.91,181.88,0.04075962]
[1747980147586,113.4,181.93,181.88,0.04075962]
[1747980148693,113.4,181.93,181.92,5.4969]
[1747980149692,118.8967,181.93,181.89,3.8383]
[1747980150096,113.4,181.93,181.89,3.8383]
[1747980150696,113.4,181.93,181.9,5.4975]
[1747980150888,118.8968,181.93,181.9,5.4975]
[1747980151080,113.4,181.93,181.89,3.8383]
[1747980151283,113.4,181.93,181.92,5.4969]
[1747980151582,0.02440986,181.94,181.89,9.34247735]
[1747980152393,113.34,181.97,181.89,9.34247735]
[1747980153095,113.34,181.97,181.95,5.4958]
[1747980153300,113.34,181.97,181.9,104.46]
[1747980153492,5.03777055,181.98,181.92,5.5428806]
[1747980153696,5.03777055,181.98,181.97,5.4954]
[1747980154190,6.77467125,182.01,181.96,0.03761557]
[1747980154397,6.77467125,182.01,181.98,5.50417735]
[1747980154596,3.73147125,182.01,182.0,5.4945]
[1747980154790,0.68817125,182.01,182.0,5.4945]
[1747980155704,113.32,182.07,181.98,109.94417735]
[1747980155890,113.32,182.07,182.01,0.03508233]
[1747980156199,5.4928,182.06,182.02,5.4937]
[1747980156794,5.4928,182.06,182.03,5.4935]
[1747980157499,5.4928,182.06,182.02,5.4938]
[1747980157705,113.32,182.07,182.02,5.4938]
[1747980157706,5.493,182.05,182.02,5.4938]
[1747980160103,113.32,182.07,182.03,5.4936]
[1747980160104,5.4928,182.06,182.03,5.4936]
[1747980160399,5.4928,182.06,182.01,0.03508233]
[1747980160592,5.4928,182.06,182.02,5.4938]
[1747980161100,5.4928,182.06,182.03,5.4936]
[1747980162505,118.8125,182.07,182.04,5.4932]
[1747980162697,474.94,182.11,182.01,0.03508233]
[1747980163000,5.492,182.09,182.01,0.03508233]
[1747980163194,113.28,182.1,182.02,5.50417735]
[1747980163803,5.4924,182.07,182.04,5.4932]
[1747980163998,5.4924,182.07,182.04,5.53281299]
[1747980164501,113.28,182.1,182.04,0.03961299]
[1747980165000,5.4926,182.07,182.04,0.03961299]
[1747980165298,113.28,182.1,182.04,0.03961299]
[1747980165496,116.9937,182.1,182.04,0.03961299]
[1747980165999,5.493,182.05,182.04,0.03961299]
[1747980170106,5.493,182.05,182.04,1.299e-05]
[1747980170309,5.4952,181.98,181.95,104.38]
[1747980170607,113.26,182.01,181.95,104.38]
[1747980170909,113.26,182.0,181.95,104.38]
[1747980171306,0.03884158,181.99,181.96,0.04102912]
[1747980172312,5.53374158,181.99,181.96,5.53652912]
[1747980172717,5.4952,181.98,181.96,0.04102912]
[1747980173510,5.53374158,181.99,181.96,5.53672912]
[1747980175212,5.4952,181.98,181.96,5.53672912]
[1747980175812,5.4952,181.98,181.96,0.04102912]
[1747980177510,5.53374158,181.99,181.96,0.04102912]
[1747980177812,5.53374158,181.99,181.96,5.53662912]
[1747980178715,0.03884158,181.99,181.97,5.4952]
[1747980178913,0.03884158,181.99,181.96,0.04102912]
[1747980179113,0.03884158,181.99,181.97,5.4954]
[1747980179813,0.03884158,181.99,181.96,0.04102912]
[1747980180423,5.53384158,181.99,181.96,5.53672912]
[1747980180817,0.03884158,181.99,181.96,0.04102912]
[1747980181116,0.03884158,181.99,181.97,5.4952]
[1747980181913,5.53364158,181.99,181.96,5.53662912]
[1747980182616,0.03884158,181.99,181.97,5.4954]
[1747980182806,0.03884158,181.99,181.96,0.04102912]
[1747980184113,5.4951,181.98,181.96,0.04102912]
[1747980184614,5.4954,181.97,181.96,0.04102912]
[1747980184913,0.03884158,181.99,181.96,0.04102912]
[1747980186015,5.4954,181.97,181.96,0.04102912]
[1747980188316,0.03884158,181.99,181.96,0.04102912]
[1747980188816,0.03884158,181.99,181.97,5.4952]
[1747980189117,0.03884158,181.99,181.96,0.04102912]
[1747980189414,0.03884158,181.99,181.96,5.54520647]
[1747980189603,113.22,182.05,181.96,5.54520647]
[1747980189804,113.22,182.05,181.99,5.50417735]
[1747980190005,5.8277,182.1,182.0,104.42]
[1747980190006,113.22,182.08,182.0,104.42]
[1747980190515,118.72417735,182.08,181.91,11.14860263]
[1747980190711,118.72417735,182.08,181.98,5.4949]
[1747980191011,118.72417735,182.08,181.98,0.04037406]
[1747980191722,5.4946,182.0,181.98,0.04037406]
[1747980194422,5.4946,182.0,181.98,5.53547406]
[1747980197728,118.714,182.02,181.99,5.4947]
[1747980197922,118.714,182.02,181.98,0.04037406]
[1747980198727,118.714,182.02,181.99,5.4946]
[1747980199123,113.22,182.02,181.98,0.04037406]
[1747980199326,113.22,182.02,182.0,5.4943]
[1747980200629,118.7139,182.02,182.0,5.4943]
[1747980200928,113.22,182.02,181.99,5.4945]
[1747980201129,118.7141,182.02,181.99,5.4945]
[1747980201534,113.22,182.02,181.98,0.04037406]
[1747980202628,113.22,182.02,182.01,5.4942]
[1747980203629,118.6328,182.06,182.03,5.4935]
[1747980203932,113.14,182.06,182.03,5.53394192]
[1747980204634,5.4932,182.05,182.03,0.04044192]
[1747980204837,113.14,182.06,182.03,0.04044192]
[1747980205830,5.4932,182.05,182.03,0.04044192]
[1747980206034,113.14,182.06,182.03,0.04044192]
[1747980206637,5.4933,182.04,182.03,0.04044192]
[1747980209030,113.14,182.06,181.94,221.85582133]
[1747980209437,5.4948,181.99,181.94,221.85582133]
[1747980209633,5.4948,181.99,181.96,5.4955]
[1747980210129,5.53524192,181.99,181.96,0.03995942]
[1747980210329,5.53524192,181.99,181.96,5.53555942]
[1747980210634,5.4951,181.98,181.96,5.53555942]
[1747980211033,5.4954,181.97,181.96,0.03995942]
[1747980211229,0.04044192,181.99,181.96,0.03995942]
[1747980211929,5.4953,181.98,181.96,0.03995942]
[1747980212239,0.04044192,181.99,181.96,0.03995942]
[1747980212438,5.4954,181.97,181.96,0.03995942]
[1747980213844,5.4966,181.94,181.92,4.23582133]
[1747980214235,1.9094,181.97,181.92,4.23582133]
[1747980214436,113.14,181.98,181.92,4.23582133]
[1747980214743,0.03987389,181.97,181.93,0.03816047]
[1747980214939,5.53527389,181.97,181.93,0.03816047]
[1747980215145,0.03987389,181.97,181.93,0.03816047]
[1747980215547,0.03987389,181.97,181.94,5.4963]
[1747980215745,0.03987389,181.97,181.93,0.03816047]
[1747980216242,0.03987389,181.97,181.96,5.4957]
[1747980218552,5.08254963,182.04,181.95,109.90417735]
[1747980218855,5.08254963,182.04,181.98,5.50417735]
[1747980219555,0.0384837,182.03,181.99,0.03865205]
[1747980220156,0.0384837,182.03,182.02,5.4939]
[1747980223758,0.0384837,182.03,181.99,0.03865205]
[1747980223957,113.14,182.02,181.98,4.23582133]
[1747980224160,5.4948,181.99,181.98,4.23582133]
[1747980224359,1.9524,182.01,181.94,4.2398813]
[1747980224858,0.04052155,181.99,181.96,0.04113267]
[1747980225058,113.14,181.98,181.96,0.04113267]
[1747980225561,5.4957,181.97,181.96,0.04113267]
[1747980228766,118.6352,181.98,181.96,0.04113267]
[1747980229564,113.14,181.98,181.96,0.04113267]
[1747980229969,0.04052155,181.99,181.96,0.04113267]
[1747980230769,0.04052155,181.99,181.97,5.4954]
[1747980230966,0.04052155,181.99,181.96,0.04113267]
[1747980231371,0.04052155,181.99,181.98,5.4951]
[1747980232973,0.04052155,181.99,181.97,5.4954]
[1747980233472,5.53532155,181.99,181.96,5.53673267]
[1747980233673,5.53532155,181.99,181.96,0.04113267]
[1747980234374,5.53532155,181.99,181.96,5.53673267]
[1747980234670,5.4951,181.98,181.96,0.04113267]
[1747980234972,0.04052155,181.99,181.96,0.04113267]
[1747980235371,5.4953,181.98,181.96,0.04113267]
[1747980236173,5.53542155,181.99,181.96,0.04113267]
[1747980236476,0.04052155,181.99,181.96,0.04113267]
[1747980238673,0.04052155,181.99,181.97,5.4954]
[1747980241179,0.04052155,181.99,181.98,5.4951]
[1747980241869,5.08254963,182.06,181.98,118.6]
[1747980242069,5.08254963,182.06,182.0,5.50417735]
[1747980242271,5.08254963,182.06,181.98,113.1]
[1747980242580,5.4935,182.04,182.01,5.4942]
[1747980242779,0.03865795,182.04,182.01,0.03494814]
[1747980243180,0.03865795,182.04,182.03,5.4936]
[1747980251082,0.03865795,182.04,182.02,5.4939]
[1747980251278,0.03865795,182.04,182.01,0.03494814]
[1747980251583,5.4936,182.03,182.01,5.52914814]
[1747980251884,0.03865795,182.04,182.01,0.03494814]
[1747980252386,5.53195795,182.04,182.02,5.4937]
[1747980253196,5.53195795,182.04,182.01,0.03494814]
[1747980253789,5.53195795,182.04,182.01,5.52894814]
[1747980254283,5.53195795,182.04,182.02,5.4938]
[1747980255284,5.4939,182.03,182.01,0.03494814]
[1747980255482,0.03865795,182.04,182.01,0.03494814]
[1747980255690,113.08,182.03,182.01,0.03494814]
[1747980255883,113.08,182.03,181.91,1.8411]
[1747980256085,1.9349,182.02,181.9,8.46689682]
[1747980256388,5.4963,181.94,181.9,8.46689682]
[1747980256584,113.08,181.95,181.9,8.46689682]
[1747980256883,113.08,181.95,181.92,0.03500211]
[1747980257095,118.5762,181.95,181.92,5.53170211]
[1747980258189,118.5762,181.95,181.92,0.03500211]
[1747980258791,5.4963,181.94,181.92,0.03500211]
[1747980259391,5.4966,181.93,181.92,0.03500211]
[1747980260689,113.08,181.95,181.92,0.03500211]
[1747980260992,5.4964,181.94,181.92,0.03500211]
[1747980261985,5.4966,181.93,181.92,0.03500211]
[1747980262794,113.08,181.95,181.82,228.66860263]
[1747980263087,115.0357,181.95,181.82,228.66860263]
[1747980263299,115.0357,181.95,181.82,223.02417735]
[1747980263697,0.03644089,181.9,181.87,0.0401402]
[1747980263995,113.27644089,181.9,181.87,0.0401402]
[1747980264195,5.498,181.89,181.87,0.0401402]
[1747980265296,113.27644089,181.9,181.87,0.0401402]
[1747980265891,5.4978,181.89,181.87,0.0401402]
[1747980266198,113.27644089,181.9,181.87,0.0401402]
[1747980266506,5.4978,181.89,181.87,0.0401402]
[1747980266899,113.27644089,181.9,181.87,0.0401402]
[1747980267299,5.4978,181.89,181.87,0.0401402]
[1747980267501,113.27644089,181.9,181.87,0.0401402]
[1747980268203,5.4978,181.89,181.87,0.0401402]
[1747980268499,113.27644089,181.9,181.87,0.0401402]
[1747980268799,5.4981,181.88,181.87,4.02e-05]
[1747980269101,1.9379,181.89,181.75,5.50417735]
[1747980269294,5.4999,181.82,181.79,5.5006]
[1747980269495,113.28,181.84,181.75,5.50417735]
[1747980269700,113.28,181.84,181.74,12.33479682]
[1747980269896,0.04151137,181.82,181.78,0.04127654]
[1747980270303,5.54171137,181.82,181.79,5.5007]
[1747980270503,0.04151137,181.82,181.79,5.5007]
[1747980271006,0.04151137,181.82,181.78,0.04127654]
[1747980271007,5.54141137,181.82,181.78,5.54237654]
[1747980271200,0.04151137,181.82,181.78,0.04127654]
[1747980271701,0.04151137,181.82,181.81,5.5002]
[1747980274310,113.3,181.85,181.81,5.5002]
[1747980274311,474.94,181.89,181.87,5.4983]
[1747980274504,113.32,181.9,181.84,5.50417735]
[1747980275204,113.32,181.9,181.82,3.8495]
[1747980275403,0.03633312,181.88,181.85,5.4988]
[1747980275606,0.03633312,181.88,181.84,0.04186183]
[1747980276106,0.03633312,181.88,181.87,5.4984]
[1747980278412,113.32,181.94,181.93,5.4965]
[1747980278713,113.32,181.96,181.93,5.4965]
[1747980278908,113.32,181.96,181.87,5.50417735]
[1747980279217,113.32,181.96,181.83,5.50417735]
[1747980279506,0.03514018,181.91,181.88,0.03956544]
[1747980279706,113.35514018,181.91,181.88,0.03956544]
[1747980279909,5.4978,181.89,181.88,0.03956544]
[1747980280108,113.35514018,181.91,181.88,0.03956544]
[1747980282711,5.4976,181.9,181.88,0.03956544]
[1747980283711,118.85244018,181.91,181.88,5.53756544]
[1747980284217,113.35514018,181.91,181.88,0.03956544]
[1747980284717,5.4978,181.89,181.88,0.03956544]
[1747980285013,113.35514018,181.91,181.88,0.03956544]
[1747980285211,118.85244018,181.91,181.88,0.03956544]
[1747980285699,113.35514018,181.91,181.88,0.03956544]
[1747980286011,5.4977,181.9,181.88,0.03956544]
[1747980286217,113.35514018,181.91,181.88,0.03956544]
[1747980286610,5.4977,181.9,181.88,0.03956544]
[1747980287013,118.85244018,181.91,181.88,0.03956544]
[1747980287311,113.35514018,181.91,181.88,0.03956544]
[1747980288006,0.03514018,181.91,181.88,0.03956544]
[1747980288211,0.03514018,181.91,181.9,5.4975]
[1747980288408,113.3,181.98,181.89,104.46]
[1747980288611,113.3,181.98,181.91,5.50417735]
[1747980288912,113.3,182.02,181.91,5.50417735]
[1747980289609,0.03576373,181.98,181.95,0.03552704]
[1747980289808,5.53096373,181.98,181.95,0.03552704]
[1747980290317,0.03576373,181.98,181.95,5.53132704]
[1747980291611,5.53086373,181.98,181.95,5.53132704]
[1747980292015,5.53086373,181.98,181.95,0.03552704]
[1747980292213,5.4957,181.96,181.95,0.03552704]
[1747980296414,7.4345,181.97,181.95,0.03552704]
[1747980296618,113.31576373,181.98,181.95,0.03552704]
[1747980297818,118.81096373,181.98,181.95,5.53142704]
[1747980298318,5.4954,181.97,181.95,0.03552704]
[1747980300219,118.81096373,181.98,181.95,5.53152704]
[1747980300423,113.31576373,181.98,181.95,0.03552704]
[1747980301119,118.81106373,181.98,181.95,5.53142704]
[1747980301419,118.81106373,181.98,181.95,0.03552704]
[1747980301714,5.4957,181.96,181.95,0.03552704]
[1747980301916,118.81994108,181.98,181.9,1.37]
[1747980302117,2.0244,181.97,181.9,1.37]
[1747980302920,2.0244,181.97,181.92,0.0384953]
[1747980303222,5.4966,181.93,181.92,0.0384953]
[1747980303406,115.06,181.93,181.9,1.37]
[1747980303822,5.4972,181.91,181.9,1.37]
[1747980304020,115.06,181.93,181.84,4.20343703]
[1747980304321,0.03664363,181.9,181.87,0.03887835]
[1747980304819,5.4978,181.89,181.87,0.03887835]
[1747980305223,0.03664363,181.9,181.87,0.03887835]
[1747980305518,5.4981,181.88,181.87,0.03887835]
[1747980305716,0.03664363,181.9,181.87,0.03887835]
[1747980306821,0.03664363,181.9,181.88,5.4979]
[1747980307114,0.03664363,181.9,181.87,0.03887835]
[1747980307523,0.03664363,181.9,181.89,5.4978]
[1747980308223,589.94,181.97,181.88,5.50417735]
[1747980308614,115.06,181.97,181.91,5.50417735]
[1747980308814,115.06,181.97,181.96,5.4957]
[1747980309308,115.06,181.97,181.95,0.04109994]
[1747980309621,0.03687793,181.98,181.95,0.04109994]
[1747980310020,0.03687793,181.98,181.97,5.4954]
[1747980310326,0.03687793,181.98,181.95,0.04109994]
[1747980311125,5.4957,181.96,181.95,0.04109994]
[1747980313235,0.03687793,181.98,181.95,0.04109994]
[1747980313926,5.4955,181.97,181.95,0.04109994]
[1747980315326,5.4957,181.96,181.95,0.04109994]
[1747980316628,120.5557,181.96,181.95,0.04109994]
[1747980319831,115.06,181.96,181.95,0.04109994]
[1747980320029,0.03687793,181.98,181.95,0.04109994]
[1747980320529,0.03687793,181.98,181.96,5.4954]
[1747980321129,0.03687793,181.98,181.95,5.53689994]
[1747980321430,0.03687793,181.98,181.95,0.04109994]
[1747980322734,0.03687793,181.98,181.96,5.4956]
[1747980323235,0.03687793,181.98,181.95,0.04109994]
[1747980323432,5.53207793,181.98,181.95,5.53689994]
[1747980324634,0.03687793,181.98,181.95,0.04109994]
[1747980325224,5.4956,181.96,181.95,0.04109994]
[1747980334548,0.03687793,181.98,181.95,0.04109994]
[1747980335542,5.4956,181.96,181.95,0.04109994]
[1747980338658,11.02717793,181.98,181.86,11.71793703]
[1747980338855,1.8543,181.95,181.86,4.20343703]
[1747980339355,5.4977,181.9,181.87,5.4983]
[1747980339556,117.02,181.91,181.86,4.20343703]
[1747980339856,0.04013519,181.9,181.87,0.03484333]
[1747980340649,5.4981,181.88,181.87,0.03484333]
[1747980345560,5.4981,181.88,181.87,4.333e-05]
[1747980346147,1.87153519,181.9,181.8,4.20343703]
[1747980346353,5.5002,181.81,181.8,4.20343703]
[1747980346656,117.04,181.82,181.8,4.20343703]
[1747980347454,0.03647,181.83,181.8,4.20343703]
[1747980347759,0.03647,181.83,181.82,5.4999]
[1747980347961,0.03647,181.83,181.8,4.20343703]
[1747980348258,0.03647,181.83,181.79,2.03084915]
[1747980349966,0.03647,181.83,181.81,5.5001]
[1747980350255,0.03647,181.83,181.79,2.03084915]
[1747980351266,5.5005,181.8,181.79,0.04104915]
[1747980351652,0.03647,181.83,181.79,0.04104915]
[1747980352260,5.4999,181.82,181.79,0.04104915]
[1747980352975,5.53607,181.83,181.79,0.04104915]
[1747980353169,0.03647,181.83,181.79,0.04104915]
[1747980353558,0.03647,181.83,181.81,5.4999]
[1747980353759,117.04,181.86,181.79,0.04104915]
[1747980354667,0.04007692,181.84,181.79,0.04104915]
[1747980354971,122.5389,181.86,181.83,5.4993]
[1747980355768,122.58004418,181.86,181.83,5.54057641]
[1747980356556,5.499,181.85,181.83,0.04127641]
[1747980356767,117.08114418,181.86,181.83,0.04127641]
[1747980357067,5.499,181.85,181.83,0.04127641]
[1747980357268,117.08114418,181.86,181.83,0.04127641]
[1747980357761,122.58004418,181.86,181.83,0.04127641]
[1747980358571,122.58004418,181.86,181.83,5.54067641]
[1747980359571,122.58004418,181.86,181.83,0.04127641]
[1747980359869,5.499,181.85,181.83,0.04127641]
[1747980360767,122.58004418,181.86,181.83,5.54077641]
[1747980360968,117.08114418,181.86,181.83,0.04127641]
[1747980361566,5.4993,181.84,181.83,0.04127641]
[1747980365572,5.4993,181.84,181.83,7.641e-05]
[1747980365774,5.5018,181.76,181.72,4.20343703]
[1747980366477,5.5018,181.76,181.73,5.5024]
[1747980366673,117.58,181.79,181.72,4.20343703]
[1747980366866,0.03997196,181.77,181.76,5.5017]
[1747980367069,5.4997,181.83,181.74,5.54995518]
[1747980367269,117.58,181.83,181.74,5.50798078]
[1747980367475,117.58,181.83,181.74,123.08798078]
[1747980367784,123.0796,181.83,181.74,117.58]
[1747980367974,123.0796,181.83,181.76,5.50798078]
[1747980368172,0.03658305,181.81,181.79,5.5008]
[1747980368475,0.03658305,181.81,181.78,0.03692204]
[1747980369078,0.03658305,181.81,181.79,5.5008]
[1747980369376,0.03658305,181.81,181.78,0.03692204]
[1747980369774,5.5005,181.8,181.78,0.03692204]
[1747980369975,0.03658305,181.81,181.78,0.03692204]
[1747980370479,5.53698305,181.81,181.78,0.03692204]
[1747980371380,0.03658305,181.81,181.78,0.03692204]
[1747980373776,5.53678305,181.81,181.78,0.03692204]
[1747980374274,5.5005,181.8,181.78,0.03692204]
[1747980375182,5.53688305,181.81,181.78,0.03692204]
[1747980375583,5.53688305,181.81,181.78,5.53802204]
[1747980375884,0.03658305,181.81,181.78,0.03692204]
[1747980376582,0.03658305,181.81,181.8,5.5005]
[1747980377078,0.03658305,181.81,181.79,5.5007]
[1747980377379,0.03658305,181.81,181.78,0.03692204]
[1747980377682,0.03658305,181.81,181.79,5.5006]
[1747980378182,0.03658305,181.81,181.78,0.03692204]